Workbook

Sheet Menu

Sheet Pequenos Credores
A1: PAGAMENTOS REFERENTES AO MÊS DE JUNHO DE 2020
A3: LISTA CLASSIFICATÓRIA ESPECIAL DE PEQUENOS CREDORES* FONTE 6300000300
A4: Nº | B4: N° FATURA | C4: VALOR DA FATURA | D4: CONTRATO | E4: RAZÃO SOCIAL | F4: CNPJ | G4: N° PROCESSO | H4: DATA DA EXIGIBILIDADE* | I4: DATA DE ENVIO P/ PGMT | J4: DATA DE PAGAMENTO | K4: JUSTIFICATIVA | L4: PAGAMENTO EFETUADO?
A5: 1 | B5: 50230 | C5: 14132 | E5: TRÊS LEÕES MATERIAL HOSPITALAR LTDA | F5: 00.175.233/0001-25 | G5: 23817.006130/2020-17 | H5: 2020-05-28 | I5: 2020-05-29 | J5: 2020-06-10 | L5: SIM
A6: 2 | B6: 476 | C6: 35.7 | E6: W.A COMERCIO E ATACADO DE PRODUTOS FARMACEUTICOS | F6: 07.238.104/0001-88 | G6: 23817.006478/2020-04 | H6: 2020-06-05 | I6: 2020-06-10 | J6: 2020-06-19 | L6: SIM
A7: 3 | B7: 477 | C7: 4767 | E7: CENUTRI COMERCIO DE SERVIÇOS EIRELI | F7: 26.605.573/0001-32 | G7: 23817.006450/2020-69 | H7: 2020-06-04 | I7: 2020-06-12 | J7: 2020-06-19 | L7: SIM
A8: 4 | B8: 529, 531 E 622 | C8: 24742.5 | E8: RICARDO MOTTA DE ANDRADE | F8: 04.624.944/0001-90 | G8: 23817.012547/2019-77 | H8: 2020-06-05 | I8: 2020-06-16 | J8: 2020-06-19 | L8: SIM
C9: =SUM(C5:C8) -> 43677.2
A11: LISTA CLASSIFICATÓRIA ESPECIAL DE PEQUENOS CREDORES* FONTE 8100915107
A12: Nº | B12: N° FATURA | C12: VALOR DA FATURA | D12: CONTRATO | E12: RAZÃO SOCIAL | F12: CNPJ | G12: N° PROCESSO | H12: DATA DA EXIGIBILIDADE* | I12: DATA DE ENVIO P/ PGMT | J12: DATA DE PAGAMENTO | K12: JUSTIFICATIVA | L12: PAGAMENTO EFETUADO?
A13: 1 | B13: 37 | C13: 2034 | E13: ANA PAULA DA SILVA LIMA | F13: 34.641.081/0001-20 | G13: 23817.006002/2020-65 | H13: 2020-05-25 | I13: 2020-05-28 | J13: 2020-06-04 | L13: SIM
A14: 2 | B14: 606 | C14: 3870 | E14: CENUTRI CLINICA ESPECIALIZADA DE NUTRIÇÃO LTDA | F14: 07.002.354/0001-14 | G14: 23817.005943/2020-81 | H14: 2020-05-27 | I14: 2020-05-29 | J14: 2020-06-10 | L14: SIM
A15: 3 | B15: 4210 | C15: 2793.6 | E15: PAULO CESAR DE OLIVEIRA SANTANA | F15: 32.861.890/0001-12 | G15: 23817.003549/2020-17 | H15: 2020-06-01 | I15: 2020-06-01 | J15: 2020-06-10 | L15: SIM
A16: 4 | B16: 6126 | C16: 11871 | E16: PRIOM TECNOLOGIA EM EQUIPAMENTOS EIRELI | F16: 11.619.992/0001-56 | G16: 23817.006303/2020-99 | H16: 2020-06-01 | I16: 2020-06-02 | J16: 2020-06-10 | L16: SIM
A17: 5 | B17: 1329 | C17: 29500 | E17: LIFE COMERCIO E SERVIÇOS EIRELI | F17: 10.468.505/0001-39 | G17: 23817.006314/2020-79 | H17: 2020-06-01 | I17: 2020-06-03 | J17: 2020-06-12 | L17: SIM
A18: 6 | B18: 1115 | C18: 173.6 | E18: NEO MED MAT HOSPITALAR LTDA | F18: 23.119.087/0001-16 | G18: 23817.006403/2020-15 | H18: 2020-06-03 | I18: 2020-06-08 | J18: 2020-06-16 | L18: SIM
A19: 7 | B19: 3 | C19: 1007 | E19: FRANCIMARA FERREIRA DE ARAUJO | F19: 34.781.946/0001-54 | G19: 23817.006420/2020-52 | H19: 2020-06-03 | I19: 2020-06-09 | J19: 2020-06-16 | L19: SIM
A20: 8 | B20: 6662 | C20: 5800 | E20: PRIOM TECNOLOGIA EM EQUIPAMENTOS EIRELI | F20: 11.619.992/0001-56 | G20: 23817.006428/2020-19 | H20: 2020-06-03 | I20: 2020-06-09 | J20: 2020-06-16 | L20: SIM
A21: 9 | B21: 2882 | C21: 10400 | E21: LABORDIDATICA | F21: 53.519.021/0001-84 | G21: 23817.006445/2020-56 | H21: 2020-06-03 | I21: 2020-06-09 | J21: 2020-06-16 | L21: SIM
A22: 10 | B22: 73561 | C22: 9340.2 | E22: CENUT CENTRO ESPECIALIZADO DE NUTRIÇÃO | F22: 05.893.097/0001-22 | G22: 23817.006376/2020-81 | H22: 2020-06-03 | I22: 2020-06-10 | J22: 2020-06-16 | L22: SIM
A23: 11 | B23: 233657 | C23: 20040 | E23: FARMACE - INDUSTRIA QUIMICO FARMACEUTICA CEARENSE LTDA | F23: 06.628.333/0001-46 | G23: 23817.006396/2020-51 | H23: 2020-06-05 | I23: 2020-06-12 | J23: 2020-06-23 | L23: SIM
A24: 12 | B24: 2620398 | C24: 10392 | E24: CRISTALIA PRODUTOS QUIMICOS FARMACEUTICOS LTDA | F24: 44.734.671/0001-51 | G24: 23817.006432/2020-87 | H24: 2020-06-04 | I24: 2020-06-12 | J24: 2020-06-23 | L24: SIM
A25: 13 | B25: 4071 | C25: 1244 | E25: PROMEDI PRODUTOS HOSPITALARES LTDA | F25: 27.806.274/0001-29 | G25: 23817.006590/2020-37 | H25: 2020-06-08 | I25: 2020-06-12 | J25: 2020-06-23 | L25: SIM
A26: 14 | B26: 10652 | C26: 2250 | E26: FRADEL -MED INDUSTRIA E COMERCIO DE APARELHOS MEDICOS LTDA | F26: 02.916.028/0001-07 | G26: 23817.006669/2020-68 | H26: 2020-06-10 | I26: 2020-06-16 | J26: 2020-06-23 | L26: SIM
A27: 15 | B27: 477 | C27: 231 | E27: W.A COMERCIO E ATACADO DE PRODUTOS FARMACEUTICOS | F27: 07.238.104/0001-88 | G27: 23817.006815/2020-55 | H27: 2020-06-12 | I27: 2020-06-17 | J27: 2020-06-25 | L27: SIM
A28: 16 | B28: 473 | C28: 315 | E28: W.A COMERCIO E ATACADO DE PRODUTOS FARMACEUTICOS | F28: 07.238.104/0001-88 | G28: 23817.006816/2020-08 | H28: 2020-06-15 | I28: 2020-06-17 | J28: 2020-06-25 | L28: SIM
A29: 17 | B29: 1362 | C29: 4849.98 | E29: VIVO LICITAÇÕES EIRELI | F29: 30.041.676/0001-94 | G29: 23817.006837/2020-15 | H29: 2020-06-10 | I29: 2020-06-17 | J29: 2020-06-25 | L29: SIM
A30: 18 | B30: 2620397 | C30: 13200 | E30: CRISTALIA PRODUTOS QUIMICOS FARMACEUTICOS LTDA | F30: 44.734.671/0001-51 | G30: 23817.006851/2020-19 | H30: 2020-06-15 | I30: 2020-06-17 | J30: 2020-06-25 | L30: SIM
A31: 19 | B31: 373122 | C31: 3084 | E31: ELFA MEDICAMENTOS S.A | F31: 09.053.134/0002-26 | G31: 23817.006864/2020-98 | H31: 2020-06-15 | I31: 2020-06-17 | J31: 2020-06-25 | L31: SIM
A32: 20 | B32: 57157 | C32: 17767.6 | E32: ATIVA PRODUTOS MEDICOS HOSPITALARES LTDA | F32: 07.925.203/0001-38 | G32: 23817.006886/2020-58 | H32: 2020-06-16 | I32: 2020-06-17 | K32: SICAF VENCIDO AGUARDAR AUTORIZAÇÃO DO ORDENADOR | L32: NÃO
A33: 21 | B33: 57156 | C33: 9547.5 | E33: ATIVA PRODUTOS MEDICOS HOSPITALARES LTDA | F33: 07.925.203/0001-38 | G33: 23817.006824/2020-46 | H33: 2020-06-15 | I33: 2020-06-18 | J33: 2020-06-30 | K33: SICAF VENCIDO AGUARDAR AUTORIZAÇÃO DO ORDENADOR | L33: SIM
A34: 22 | B34: 615 | C34: 10229.9 | E34: JORGE LUIZ GUSMÃO BUARQUE EIRELI | F34: 31.157.789/0001-12 | G34: 23817.006842/2020-28 | H34: 2020-06-10 | I34: 2020-06-18 | J34: 2020-06-29 | L34: SIM
A35: 23 | B35: 12496 | C35: 8775 | E35: SERVNUTRI COMERCIO DE PRODUTOS NUREICIONAIS EIRELI | F35: 18.656.923/0003-23 | G35: 23817.006819/2020-33 | H35: 2020-06-15 | I35: 2020-06-19 | J35: 2020-06-29 | L35: SIM
A36: 24 | B36: 6572 | C36: 4254.4 | E36: SÓ SAÚDE PRODUTOS HOSPITALARES EIRELI | F36: 29.775.313/0001-01 | G36: 23817.006649/2020-97 | H36: 2020-06-10 | I36: 2020-06-19 | J36: 2020-06-29 | L36: SIM
A37: 25 | B37: 5273 | C37: 4680 | E37: MEDCOM COMERCIO REP. E SERVIÇOS LTDA | F37: 06.886.136/0001-27 | G37: 23817.007016/2020-04 | H37: 2020-06-19 | I37: 2020-06-22 | J37: 2020-06-30 | L37: SIM
A38: 26 | B38: 159320 | C38: 8145 | E38: FARMAC PRODUTOS HOSPITALARES LABORATORIAIS LTDA | F38: 32.838.716/0001-59 | G38: 23817.006821/2020-11 | H38: 2020-06-15 | I38: 2020-06-22 | J38: 2020-06-30 | L38: SIM
A39: 27 | B39: 7786 | C39: 4736 | E39: DISTRIBUIDORA DE MEDICAMENTOS PRO SAUDE LTDA | F39: 08.676.370/0001-55 | G39: 23817.006962/2020-25 | H39: 2020-06-18 | I39: 2020-06-22 | J39: 2020-06-30 | L39: SIM
A40: 28 | B40: 5264 | C40: 675 | E40: MEDCOM COMERCIO REP. E SERVIÇOS LTDA | F40: 06.886.136/0001-27 | G40: 23817.007045/2020-68 | H40: 2020-06-22 | I40: 2020-06-22 | J40: 2020-06-30 | L40: SIM
A41: 29 | B41: 72831 | C41: 19300 | E41: COMERCIAL MOSTAERT LTTDA | F41: 11.563.145/0001-17 | G41: 23817.006972/2020-61 | H41: 2020-06-18 | I41: 2020-06-22 | J41: 2020-06-30 | L41: SIM
A42: 30 | B42: 101344 | C42: 9000 | E42: UNI HOSPITALAR LTDA | F42: 07.484.373/0001-24 | G42: 23817.006988/2020-73 | H42: 2020-06-18 | I42: 2020-06-22 | J42: 2020-06-30 | L42: SIM
A43: 31 | B43: 23053 | C43: 3000 | E43: DOUGLAS MEDICO CIENTIFICA LTDA EPP | F43: 32.889.057/0001-80 | G43: 23817.007116/2020-22 | H43: 2020-06-22 | I43: 2020-06-23 | L43: NÃO
A44: 32 | B44: 372978 | C44: 26600 | E44: ELFA MEDICAMENTOS S.A | F44: 09.053.134/0002-26 | G44: 23817.0071982020-13 | H44: 2020-06-25 | I44: 2020-06-26 | L44: NÃO
A45: 33 | B45: 632 | C45: 22980.3 | E45: RICARDO MOTTA DE ANDRADE | F45: 04.624.944/0001-90 | G45: 23817.007246/2020-65 | H45: 2020-06-25 | I45: 2020-06-26 | L45: NÃO
A46: 34 | B46: 6917 | C46: 640 | E46: MERCANTIL BARRETO COMERCIAL DE PRODUTOS | F46: 15.031.173/0001-44 | G46: 23817.007151/2020-41 | H46: 2020-06-23 | I46: 2020-06-29 | L46: NÃO
A47: 35 | B47: 7466 | C47: 7980 | E47: SANFARMA COMERCIO DE MEDICAMENTOS LTDA | F47: 00.895.119/0001-70 | G47: 23817.007135/2020-59 | H47: 2020-06-23 | I47: 2020-06-29 | L47: NÃO
C48: =SUM(C13:C47) -> 290706.08
A50: LISTA CLASSIFICATÓRIA ESPECIAL DE PEQUENOS CREDORES* FONTE 6153000300
A51: Nº | B51: N° FATURA | C51: VALOR DA FATURA | D51: CONTRATO | E51: RAZÃO SOCIAL | F51: CNPJ | G51: N° PROCESSO | H51: DATA DA EXIGIBILIDADE* | I51: DATA DE ENVIO P/ PGMT | J51: DATA DE PAGAMENTO | K51: JUSTIFICATIVA | L51: PAGAMENTO EFETUADO?
A52: 1 | B52: 644 | C52: 2000 | E52: LB COMERCIO E SERVIÇOS EIRELI EPP | F52: 18.489.967/0001-44 | G52: 23817.005879/2020-39 | H52: 2020-05-19 | I52: 2020-05-21 | J52: 2020-06-02 | L52: SIM
A53: 2 | B53: 606 | C53: 255 | E53: RICARDO MOTTA DE ANDRADE | F53: 04.624.944/0001-90 | G53: 23817.005851/2020-00 | H53: 2020-05-20 | I53: 2020-05-21 | J53: 2020-06-02 | L53: SIM
A54: 3 | B54: 604 | C54: 15245 | E54: RICARDO MOTTA DE ANDRADE | F54: 04.624.944/0001-90 | G54: 23817.003506/2020-23 | H54: 2020-05-20 | I54: 2020-05-21 | J54: 2020-06-02 | L54: SIM
A55: 4 | B55: 467 | C55: 5425.5 | E55: CENUTRI COMERCIO DE SERVIÇOS EIRELI | F55: 26.605.573/0001-32 | G55: 23817.005875/2020-51 | H55: 2020-05-19 | I55: 2020-05-21 | J55: 2020-06-02 | L55: SIM
A56: 5 | B56: 50174 | C56: 6912 | E56: TRÊS LEÕES MATERIAL HOSPITALAR | F56: 00.175.233/0001-25 | G56: 23817.005862/2020-81 | H56: 2020-05-19 | I56: 2020-05-21 | J56: 2020-06-02 | L56: SIM
A57: 6 | B57: 308508 | C57: 1350 | E57: DROGAFONTE MEDICAMENTOS E MATERIAL HOSPITALAR | F57: 08.778.201/0001-26 | G57: 23817.005702/2020-32 | H57: 2020-05-18 | I57: 2020-05-25 | J57: 2020-06-03 | L57: SIM
A58: 7 | B58: 80760 | C58: 3015 | E58: AGLON COMERCIO E REPRESENTAÇÕES LTDA | F58: 65.817.900/0001-71 | G58: 23817.005899/2020-18 | H58: 2020-05-21 | I58: 2020-05-25 | J58: 2020-06-03 | L58: SIM
A59: 8 | B59: 1301 | C59: 20 | E59: ANJOMEDI DISTRIBUIDORA DE MEDICAMENTOS LTDA | F59: 31.151.224/0001-28 | G59: 23817.005876/2020-03 | H59: 2020-05-21 | I59: 2020-05-25 | J59: 2020-06-03 | L59: SIM
A60: 9 | B60: 56682 | C60: 23400 | E60: AUROBINDO PHARMA INDUSTRIA FARMACEUTICA LTDA | F60: 02.301.884/0001-75 | G60: 23817.003694/2020-90 | H60: 2020-05-19 | I60: 2020-05-25 | J60: 2020-06-03 | L60: SIM
A61: 10 | B61: 641 | C61: 4860 | E61: LB COMERCIO E SERVIÇOS EIRELI EPP | F61: 18.489.967/0001-44 | G61: 23817.005878/2020-94 | H61: 2020-05-19 | I61: 2020-05-26 | J61: 2020-06-05 | L61: SIM
A62: 11 | B62: 12901 | C62: 4680 | E62: RIOBAHIAFARMA COMERCIO E DISTRIBUIDORA DE PRODUTOS MEDICOS E COSMETICOS LTDA | F62: 15.145.035/0001-96 | G62: 23817.005729/2020-25 | H62: 2020-05-15 | I62: 2020-05-26 | J62: 2020-06-05 | L62: SIM
A63: 12 | B63: 321793 | C63: 3498 | E63: HALEXISTAR INDUSTRIA FARMACEUTICA | F63: 01.571.702/0001-98 | G63: 23817.005886/2020-31 | H63: 2020-05-21 | I63: 2020-05-26 | J63: 2020-06-05 | L63: SIM
A64: 13 | B64: 1760 | C64: 2010 | E64: HASSEN RAAD DISTRIBUIDORA DE MEDICAMENTOS E PRODUTOS NUTRICIONAIS LTDA | F64: 21.296.343/0001-15 | G64: 23817.005856/2020-24 | H64: 2020-05-20 | I64: 2020-05-26 | J64: 2020-06-05 | L64: SIM
A65: 14 | B65: 42128 | C65: 504 | E65: DELTA INDUSTRIA E COMERCIO LTDA | F65: 17.602.864/0001-8 | G65: 23817.005861/2020-37 | H65: 2020-05-19 | I65: 2020-05-26 | J65: 2020-06-05 | L65: SIM
A66: 15 | B66: 97746 | C66: 7514 | E66: UNI HOSPITALAR LTDA | F66: 07.484.373/0001-24 | G66: 23817.004580/2020-67 | H66: 2020-04-14 | I66: 2020-05-26 | J66: 2020-06-05 | L66: SIM
A67: 16 | B67: 4169 | C67: 900 | E67: MEDICINALI PRODUTOS PARA SAUDE EIRELI | F67: 20.918.668/0001-20 | G67: 23817.005988/2020-56 | H67: 2020-05-25 | I67: 2020-05-27 | J67: 2020-06-05 | L67: SIM
A68: 17 | B68: 7020 | C68: 924 | E68: ORTOM INDUSTRIA TEXTIL LTDA | F68: 04.890.798/0001-45 | G68: 23817.003844/2020-65 | H68: 2020-03-18 | I68: 2020-05-27 | J68: 2020-06-05 | L68: SIM
A69: 18 | B69: 150400 | C69: 740 | E69: PROMEFARMA REPRESENTAÇÕES COMERCIAIS LTDA | F69: 81.706.251/0001-98 | G69: 23817.006021/2020-91 | H69: 2020-05-25 | I69: 2020-05-27 | J69: 2020-06-05 | L69: SIM
A70: 19 | B70: 148010 | C70: 981 | E70: PROMEFARMA REPRESENTAÇÕES COMERCIAIS LTDA | F70: 81.706.251/0001-98 | G70: 23817.004803/2020-96 | H70: 2020-04-23 | I70: 2020-05-27 | J70: 2020-06-05 | L70: SIM
A71: 20 | B71: 45875 | C71: 8000 | E71: SG TECNOLOGIA CLINICA LTDA | F71: 61.485.900/0005-94 | G71: 23817.003798/2020-02 | H71: 2020-03-23 | I71: 2020-05-27 | J71: 2020-06-05 | L71: SIM
A72: 21 | B72: 148106 | C72: 2780 | E72: PROMEFARMA REPRESENTAÇÕES COMERCIAIS LTDA | F72: 81.706.251/0001-98 | G72: 23817.004807/2020-74 | H72: 2020-04-23 | I72: 2020-05-27 | J72: 2020-06-05 | L72: SIM
A73: 22 | B73: 146340 | C73: 4348 | E73: PROMEFARMA REPRESENTAÇÕES COMERCIAIS LTDA | F73: 81.706.251/0001/98 | G73: 23817.004588/2020-23 | H73: 2020-04-14 | I73: 2020-05-27 | J73: 2020-06-05 | L73: SIM
A74: 23 | B74: 7588 E 7592 | C74: 7350 | E74: CARLA DE OLIVEIRA CORREA | F74: 08.583.229/0001-08 | G74: 23817.006015/2020-34 | H74: 2020-05-25 | I74: 2020-05-27 | J74: 2020-06-05 | L74: SIM
A75: 24 | B75: 584 E 610 | C75: 18032.5 | E75: RICARDO MOTTA DE ANDRADE | F75: 04.624.944/0001-90 | G75: 23817.005421/2020-80 | H75: 2020-05-26 | I75: 2020-05-28 | J75: 2020-06-08 | L75: SIM
A76: 25 | B76: 115 | C76: 440 | E76: PRIME SOLUÇÕES EM SAUDE EIRELI | F76: 27.080.739/0001-07 | G76: 23817.006006/2020-43 | H76: 2020-05-25 | I76: 2020-05-28 | J76: 2020-06-08 | L76: SIM
A77: 26 | B77: 14103 | C77: 355 | E77: GOLDENPLUS COM DE MEDIC E PROD HOSPLS LTDA | F77: 17.472.278/0001-64 | G77: 23817.006031/2020-27 | H77: 2020-05-26 | I77: 2020-05-28 | J77: 2020-06-08 | L77: SIM
A78: 27 | B78: 3808 | C78: 8507.25 | E78: STERILINE MEDICAL LTDA | F78: 14.743.572/0001-75 | G78: 23817.006009/2020-87 | H78: 2020-05-25 | I78: 2020-05-28 | J78: 2020-06-08 | L78: SIM
A79: 28 | B79: 2616902 | C79: 4650 | E79: CRISTALIA PRODUTOS QUIMICOS FARMACEUTICOS LTDA | F79: 44.734.671/0001-51 | G79: 23817.006074/2020-11 | H79: 2020-05-26 | I79: 2020-05-28 | J79: 2020-06-08 | L79: SIM
A80: 29 | B80: 5197 | C80: 16711.2 | E80: MEDCOM COMERCIO REP. E SERVIÇOS LTDA | F80: 06.886.136/0001-27 | G80: 23817.006082/2020-59 | H80: 2020-05-26 | I80: 2020-05-28 | J80: 2020-06-08 | L80: SIM
A81: 30 | B81: 308624 | C81: 48 | E81: DROGAFONTE MEDICAMENTOS E MATERIAL HOSPITALAR LTDA | F81: 08.778.201/0001-26 | G81: 23817.006005/2020-07 | H81: 2020-05-25 | I81: 2020-05-29 | J81: 2020-06-09 | L81: SIM
A82: 31 | B82: 7408 | C82: 739.9 | E82: EXEMPLAMED COMERCIO DE PRODUTOS HOSPITALARES LTDA ME | F82: 23.312.871/0001-46 | G82: 23817.005997/2020-47 | H82: 2020-05-25 | I82: 2020-05-29 | J82: 2020-06-09 | L82: SIM
A83: 32 | B83: 5199 | C83: 4150 | E83: MEDCOM COMERCIO REP. E SERVIÇOS LTDA | F83: 06.886.136/0001-27 | G83: 23817.006084/2020-48 | H83: 2020-05-27 | I83: 2020-05-29 | J83: 2020-06-09 | L83: SIM
A84: 33 | B84: 10386 | C84: 3607.2 | E84: CASA DA INSTRUMENTAÇÃO LTDA ME | F84: 09.255.284/0001-31 | G84: 23817.006038/2020-49 | H84: 2020-05-25 | I84: 2020-05-29 | J84: 2020-06-09 | L84: SIM
A85: 34 | B85: 2561 | C85: 12000 | E85: HOSPMED COMERCIO EIRELI | F85: 18.224.182/0001-40 | G85: 23817.006147/2020-66 | H85: 2020-05-28 | I85: 2020-06-01 | J85: 2020-06-09 | L85: SIM
A86: 35 | B86: 5395 | C86: 3099.2 | E86: SO SAUDE PRODUTOS HOSPITALARES EIRLEI | F86: 29.775.313/0001-01 | G86: 23817.004315/2020-89 | H86: 2020-04-06 | I86: 2020-06-08 | J86: 2020-06-15 | L86: SIM
A87: 36 | B87: 1060 | C87: 669 | E87: NEO MED MAT HOSPITALAR LTDA | F87: 23.119.087/0001-16 | G87: 23817.006449/2020-34 | H87: 2020-06-04 | I87: 2020-06-09 | J87: 2020-06-15 | L87: SIM
A88: 37 | B88: 26 | C88: 10638 | E88: DENILDA DA SILVA LINHARES MILITAO BARROSO | F88: 00.962.975/0001-09 | G88: 23817.005724/2020-01 | H88: 2020-06-03 | I88: 2020-06-09 | J88: 2020-06-15 | L88: SIM
A89: 38 | B89: 310226 | C89: 726 | E89: PB FARMA DISTRIBUIDORA DE MEDICAMENTOS LTDA | F89: 05.487.170/0001-66 | G89: 23817.006443/2020-67 | H89: 2020-06-04 | I89: 2020-06-10 | J89: 2020-06-18 | L89: SIM
A90: 39 | B90: 1369 | C90: 1935 | E90: CIRURGICA SÃO LUIS DISTRIBUIDORA DE MEDICAMENTOS E PRODUTOS HOSPITALARES EIRELI | F90: 31.940.937/0001-70 | G90: 23817.006381/2020-93 | H90: 2020-06-03 | I90: 2020-06-10 | J90: 2020-06-18 | L90: SIM
A91: 40 | B91: 474 | C91: 102 | E91: W.A COMERCIO E ATACADO DE PRODUTOS FARMACEUTICOS | F91: 07.238.104/0001-88 | G91: 23817.006487/2020-97 | H91: 2020-06-05 | I91: 2020-06-10 | J91: 2020-06-18 | L91: SIM
A92: 41 | B92: 1075 | C92: 880 | E92: TENDEMED COMERCIO DE PRODUTOS MEDICOS LTDA | F92: 28.270.828/0001-89 | G92: 23817.006519/2020-54 | H92: 2020-06-05 | I92: 2020-06-12 | J92: 2020-06-18 | L92: SIM
A93: 42 | B93: 32265 E 32332 | C93: =2313.9+2451.4 -> 4765.3 | E93: MEDIC STOCK COMERCIO DE PRODUTOS MEDICOS HOSPITALARES | F93: 05.997.927/0001-61 | G93: 23817.005849/2020-22 | H93: 2020-06-05 | I93: 2020-06-12 | J93: 2020-06-18 | L93: SIM
A94: 43 | B94: 2482 | C94: 440 | E94: PROSPER COMERCIO E DISTRIBUIDORA EIRELI - ME | F94: 20.489.064/0001-05 | G94: 23817.006607/2020-56 | H94: 2020-06-09 | I94: 2020-06-12 | J94: 2020-06-18 | L94: SIM
A95: 44 | B95: 784 | C95: 8760 | E95: LODERME FARMACIA DE MANIPULAÇÃO LTDA ME | F95: 00.150.371/0001-50 | G95: 23817.006618/2020-36 | H95: 2020-06-09 | I95: 2020-06-15 | J95: 2020-06-19 | L95: SIM
A96: 45 | B96: 58187 | C96: 3740 | E96: COMERCIO VALFARMA EIRELI | F96: 02.600.770/0001-09 | G96: 23817.006592/2020-26 | H96: 2020-06-08 | I96: 2020-06-15 | J96: 2020-06-19 | L96: SIM
A97: 46 | B97: 100479 | C97: 2395 | E97: UNI HOSPITALAR LTDA | F97: 07.484.373/0001-24 | G97: 23817.006610/2020-70 | H97: 2020-06-09 | I97: 2020-06-15 | J97: 2020-06-19 | L97: SIM
A98: 47 | B98: 16475 | C98: 1358 | E98: DMG COMERCIO E REPRESENTAÇÕES DE MATERIAIS HOSPITALARES EIRELI | F98: 36.753.739/0001-11 | G98: 23817.006665/2020-80 | H98: 2020-06-10 | I98: 2020-06-15 | J98: 2020-06-19 | L98: SIM
A99: 48 | B99: 6475 | C99: 1118 | E99: LIVRARIA E PAPELARIA PRATICA LTDA ME | F99: 19.197.721/0001-61 | G99: 23817.006664/2020-35 | H99: 2020-06-10 | I99: 2020-06-15 | J99: 2020-06-19 | L99: SIM
A100: 49 | B100: 5392 | C100: 1775 | E100: MEDEFE PRODUTOS MEDICOS HOSPITALARES LTDA | F100: 25.463.374/0001-74 | G100: 23817.006663/2020-91 | H100: 2020-06-10 | I100: 2020-06-16 | J100: 2020-06-23 | L100: SIM
A101: 50 | B101: 753 | C101: 2612 | E101: PRIMED COMERCIO DE PRODUTOS HOSPITALARES EIRELI | F101: 26.556.283/0001-46 | G101: 23817.006655/2020-44 | H101: 2020-06-10 | I101: 2020-06-16 | J101: 2020-06-23 | L101: SIM
A102: 51 | B102: 6897 | C102: 1810 | E102: SÓ SAUDE PRODUTOS HOSPITALARES | F102: 29.775.313/0001-01 | G102: 23817.006727/2020-53 | H102: 2020-06-12 | I102: 2020-06-16 | J102: 2020-06-23 | L102: SIM
A103: 52 | B103: 85087 | C103: 19990 | E103: SISPACK MEDICAL LYDA | F103: 54.565.478/0001-98 | G103: 23817.004664/2020-09 | H103: 2020-04-16 | I103: 2020-06-16 | J103: 2020-06-23 | L103: SIM
A104: 53 | B104: 1975 | C104: 1250 | D104: 08/2020 | E104: ANDRE DOS SANTOS BISPO | F104: 036.841.535-08 | G104: 23817.006455/2020-91 | H104: 2020-06-05 | I104: 2020-06-17 | J104: 2020-06-25 | L104: SIM
A105: 54 | B105: 165 | C105: 1300 | E105: EXCLUSIVE PRODUTOS HOSPITALARES EIRELI | F105: 33.891.594/0001-27 | G105: 23817.006883/2020-14 | H105: 2020-06-16 | I105: 2020-06-18 | J105: 2020-06-26 | L105: SIM
A106: 55 | B106: 152115 | C106: 5161.5 | E106: PROMEFARMA REPRESENTAÇÕES COMERCIAIS LTDA | F106: 81.706.251/0001-98 | G106: 23817.006887/2020-01 | H106: 2020-06-16 | I106: 2020-06-18 | J106: 2020-06-26 | L106: SIM
A107: 56 | B107: 32451 | C107: 2500 | E107: MEDICSTOCK COMERCIO DE PRODUTOS MEDICOS HOSPITALARES EIRELI | F107: 05.997.927/0001-61 | G107: 23817.006894/2020-02 | H107: 2020-06-16 | I107: 2020-06-18 | J107: 2020-06-26 | L107: SIM
A108: 57 | B108: 1221679 | C108: 136 | E108: CIRURGICA FERNANDES - COMERCIO DE MATERIAIS CIRURGICOS E HOSPITALARES LTDA | F108: 61.418.042/0001-31 | G108: 23817.006902/2020-11 | H108: 2020-06-16 | I108: 2020-06-18 | J108: 2020-06-26 | L108: SIM
A109: 58 | B109: 6768 | C109: 4000 | E109: MERCANTIL BARRETO COMERCIO DE PRODUTOS | F109: 15.031.173/0001-44 | G109: 23817.006895/2020-49 | H109: 2020-06-16 | I109: 2020-06-18 | J109: 2020-06-26 | L109: SIM
A110: 59 | B110: 23285 | C110: 6177 | E110: OPUSPAC INDÚSTRIA E COMÉRCIO DE MÁQUINAS LTDA | F110: 10.780.790/0001-29 | G110: 23817.006757/2020-60 | H110: 2020-06-12 | I110: 2020-06-18 | J110: 2020-06-26 | L110: SIM
A111: 60 | B111: 643 | C111: 666.5 | E111: LB COMERCIO E SERVIÇO EIRELI - ME | F111: 18.489.967/0001-44 | G111: 23817.006758/2020-12 | H111: 2020-06-12 | I111: 2020-06-19 | J111: 2020-06-26 | L111: SIM
A112: 61 | B112: 303015 | C112: 26179.32 | E112: CREMER S.A | F112: 82.641.325/0021-61 | G112: 23817.006980/2020-15 | H112: 2020-06-18 | I112: 2020-06-19 | J112: 2020-06-26 | L112: SIM
A113: 62 | B113: 91022 | C113: 288 | E113: BIOLINE FIOS CIRURGICOS LTDA | F113: 37.844.479/0001-52 | G113: 23817.006896//2020-93 | H113: 2020-06-16 | I113: 2020-06-22 | J113: 2020-06-30 | L113: SIM
A114: 63 | B114: 6782 | C114: 700 | E114: PRIOM TECNOLOGIA EM EQUIPAMENTOS EIRELI ME | F114: 11.619.992/0001-56 | G114: 23817.006939/2020-31 | H114: 2020-06-17 | I114: 2020-06-22 | J114: 2020-06-30 | L114: SIM
A115: 64 | B115: 5690 | C115: 1475 | E115: MEDEFE PRODUTOS MEDICOS HOSPITALARES LTDA | F115: 25.463.374/0001-74 | G115: 23817.007042/2020-24 | H115: 2020-06-19 | I115: 2020-06-22 | J115: 2020-06-30 | L115: SIM
A116: 65 | B116: 5691 | C116: 2598.4 | E116: MEDEFE PRODUTOS MEDICOS HOSPITALARES LTDA | F116: 25.463.374/0001-74 | G116: 23817.007036/2020-77 | H116: 2020-06-19 | I116: 2020-06-22 | J116: 2020-06-30 | L116: SIM
A117: 66 | B117: 5272 | C117: 2777 | E117: MEDCOM COMERCIO REP. E SERVIÇOS LTDA | F117: 06.886.136/0001-27 | G117: 23817.007088/2020-43 | H117: 2020-06-22 | I117: 2020-06-22 | J117: 2020-06-30 | L117: SIM
A118: 67 | B118: 640 e 680 | C118: 490 | E118: LB COMERCIO E SERVIÇO EIRELI - ME | F118: 18.489.967/0001-44 | G118: 23817.005877/2020-40 | H118: 2020-06-22 | I118: 2020-06-23
A119: 68 | B119: 627 E 679 | C119: 254.8 | E119: LB COMERCIO E SERVIÇO EIRELI - ME | F119: 18.489.967/0001-44 | G119: 23817.005369/2020-61 | H119: 2020-06-22 | I119: 2020-06-23
A120: 69 | B120: 13666 | C120: 1920 | E120: W.M.W COMERCIAL E MATERIAL DE LIMPEZA LTDA | F120: 32.875.635/0001-29 | G120: 23817.007114/2020-33 | H120: 2020-06-22 | I120: 2020-06-23
A121: 70 | B121: 5290 | C121: 2760 | E121: PLASTKEN COMERCIO DE PASTICO LTDA | F121: 13.986.389/0001-38 | G121: 23817.007110/2020-55 | H121: 2020-06-22 | I121: 2020-06-23
A122: 71 | B122: 548986 | C122: 7050 | E122: BECTON DICKINSON INDUSTRIA CIRURGICA LTDA | F122: 21.551.379/0008-74 | G122: 23817.007115/2020-88 | H122: 2020-06-22 | I122: 2020-06-23
A123: 72 | B123: 13922 | C123: 2900.8 | E123: A GERADORA ALUGUEL DE MÁQUINAS S.A | F123: 33.845.322/0016-77 | G123: 23817.007034/2020-88 | H123: 2020-06-22 | I123: 2020-06-26
A124: 73 | B124: 311329 | C124: 7280 | E124: DROGAFONTE MEDICAMENTOS E MATERIAL HOSPITALAR LTDA | F124: 08.778.201/0001-26 | G124: 23817.007250/2020-23 | H124: 2020-06-26 | I124: 2020-06-26
A125: 74 | B125: 373665 | C125: 3495.2 | E125: ELFA MEDICAMENTOS S.A | F125: 09.053.134/0002-26 | G125: 23817.007229/2020-28 | H125: 2020-06-25 | I125: 2020-06-26
A126: 75 | B126: 23045 | C126: 3393.5 | E126: DOUGLAS MEDICO CIENTIFICO LTDA | F126: 32.889.057/0001-80 | G126: 23817.007248/2020-54 | H126: 2020-06-25 | I126: 2020-06-26
A127: 76 | B127: 6340 | C127: 150 | E127: LIFE CENTER COM. E DIST. DE MEDICAMENTOS | F127: 21.227.039/0001-16 | G127: 23817.007193/2020-82 | H127: 2020-06-25 | I127: 2020-06-26
A128: 77 | B128: 841 | C128: 10 | E128: BS DISTRIBUIDORA HOSPITALAR EIRELI | F128: 32.910.616/0001-96 | G128: 23817.007187/2020-25 | H128: 2020-06-23 | I128: 2020-06-26
A129: 78 | B129: 510 | C129: 2770.2 | E129: CENUTRI COMERCIO E SERVIÇOS EIRELI | F129: 26.605.573/0001-32 | G129: 23817.007244/2020-76 | H129: 2020-06-25 | I129: 2020-06-29
A130: 79 | B130: 6704 | C130: 466 | E130: MERCANTIL BARRETO COMERCIO DE PRODUTOS | F130: 15.031.173/0001-44 | G130: 23817.007143/2020-03 | H130: 2020-06-23 | I130: 2020-06-29
A131: 80 | B131: 33 | C131: 108 | E131: ONMED DISTRIBUIDORA DE MEDICAMENTOS EIRELI | F131: 34.707.920/0001-66 | G131: 23817.007134/2020-12 | H131: 2020-06-23 | I131: 2020-06-29
A132: 81 | B132: 528 E 792 | C132: 3046 | E132: BS DISTRIBUIDORA HOSPITALAR EIRELI | F132: 32.910.616/0001-96 | G132: 23817.006045/2020-41 | H132: 2020-06-26 | I132: 2020-06-29
A133: 82 | B133: 371 | C133: 262.7 | E133: T2C GESTAO E DISTRIBUIÇÃO EIRELI | F133: 30.273.846/0001-66 | G133: 23817.007222/2020-14 | H133: 2020-06-25 | I133: 2020-06-29
A134: 83 | B134: 236634 | C134: 380.23 | D134: 07/2018 | E134: SAPRA LANDAUER DE ASSESSORIA E PROTEÇÃO RADIAL LTDA | F134: 50.429.810/0001-36 | G134: 23817.006329/2020-37 | H134: 2020-06-02 | I134: 2020-06-29
A135: 84 | B135: 57559 | C135: 8000 | E135: ATIVA PRODUTOS MEDICOS HOSPITALARES LTDA | F135: 07.925.203/0001-38 | G135: 23817.007259/2020-34 | H135: 2020-06-25 | I135: 2020-06-29
A136: 85 | B136: 43 | C136: 2010.24 | E136: ANA PAULA DA SILVA LIMA | F136: 34.641.081/0001-20 | G136: 23817.007032/2020-99 | H136: 2020-06-19 | I136: 2020-06-30
C137: =SUM(C52:C136) -> 344721.44
A139: LISTA CLASSIFICATÓRIA ESPECIAL DE PEQUENOS CREDORES* FONTE 8296000000
A140: Nº | B140: N° FATURA | C140: VALOR DA FATURA | D140: CONTRATO | E140: RAZÃO SOCIAL | F140: CNPJ | G140: N° PROCESSO | H140: DATA DA EXIGIBILIDADE* | I140: DATA DE ENVIO P/ PGMT | J140: DATA DE PAGAMENTO | K140: JUSTIFICATIVA | L140: PAGAMENTO EFETUADO?
A141: 1 | B141: 18272 | C141: 22572 | E141: D&F COMERCIO DE EPIS FERRAMENTAS | F141: 23.724.306/0001-96 | G141: 23817.005887/2020-85 | H141: 2020-05-18 | I141: 2020-05-25 | J141: 2020-06-01 | L141: SIM
C142: =SUM(C141:C141) -> 22572
A144: LISTA CLASSIFICATÓRIA ESPECIAL DE PEQUENOS CREDORES* FONTE 0151003011
A145: Nº | B145: N° FATURA | C145: VALOR DA FATURA | D145: CONTRATO | E145: RAZÃO SOCIAL | F145: CNPJ | G145: N° PROCESSO | H145: DATA DA EXIGIBILIDADE* | I145: DATA DE ENVIO P/ PGMT | J145: DATA DE PAGAMENTO | K145: JUSTIFICATIVA | L145: PAGAMENTO EFETUADO?
A146: 1 | B146: 5772 | C146: 2985 | E146: K.C.R. INDUSTRIA E COMERCIO DE EQUIPAMENTOS EIRLEI | F146: 09.251.627/0001-90 | G146: 23817.006402/2020-71 | H146: 2020-06-01 | I146: 2020-06-08 | J146: 2020-06-22 | L146: SIM
A147: 2 | B147: 75 | C147: 28800 | E147: M.G.PAULIN SERVIÇOS E MANUTENÇÕES | F147: 33.132.331/0001-34 | G147: 23817.006482/2020-64 | H147: 2020-06-01 | I147: 2020-06-15 | L147: NÃO
C148: =SUM(C146:C147) -> 31785
A150: CATEGORIA: I - FORNECIMENTO DE BENS - FONTE 0151002788
A151: Nº | B151: N° FATURA | C151: VALOR DA FATURA | D151: CONTRATO | E151: RAZÃO SOCIAL | F151: CNPJ | G151: N° PROCESSO | H151: DATA DA EXIGIBILIDADE* | I151: DATA DE ENVIO P/ PGMT | J151: DATA DE PAGAMENTO | K151: JUSTIFICATIVA | L151: PAGAMENTO EFETUADO?
A152: 1 | B152: 322049 | C152: 12400 | E152: HALEXISTAR INDUSTRIA FARMACEUTICA | F152: 01.571.702/0001-98 | G152: 23817.005984/2020-78 | H152: 2020-05-25 | I152: 2020-05-27 | J152: 2020-06-22 | L152: SIM
C153: =SUM(C152) -> 12400
A155: LISTA CLASSIFICATÓRIA ESPECIAL DE PEQUENOS CREDORES* FONTE 0100915002
A156: Nº | B156: N° FATURA | C156: VALOR DA FATURA | D156: CONTRATO | E156: RAZÃO SOCIAL | F156: CNPJ | G156: N° PROCESSO | H156: DATA DA EXIGIBILIDADE* | I156: DATA DE ENVIO P/ PGMT | J156: DATA DE PAGAMENTO | K156: JUSTIFICATIVA | L156: PAGAMENTO EFETUADO?
A157: 1 | B157: 11663 | C157: 9450 | E157: LEEDSAY INDUSTRIA E COMERCIO DE PRODUTOS MEDICOS LTDA | F157: 08.116.472/0001-16 | G157: 23817.005730/2020-50 | H157: 2020-05-27 | I157: 2020-05-28 | J157: 2020-06-01 | L157: SIM
A158: 2 | B158: 16428 | C158: 15707.25 | E158: DMD COM. E REP DE MATERIAL MEDICO HOSPITALAR EIRELI | F158: 36.753.739/0001-11 | G158: 23817.006095/2020-28 | H158: 2020-05-27 | I158: 2020-06-01 | J158: 2020-06-02 | L158: SIM
A159: 3 | B159: 11739 | C159: 18900 | E159: LEEDSAY INDUSTRIA E COMERCIO DE PRODUTOS MEDICOS LTDA | F159: 08.116.472/0001-16 | G159: 23817.006311/2020-35 | H159: 2020-06-02 | I159: 2020-06-08 | J159: 2020-06-26 | K159: ATRASO NO ENVIO DA GNRE POR PARTE DO FORNECEDOR | L159: SIM
A160: 4 | B160: 11867 | C160: 18900 | E160: LEEDSAY INDUSTRIA E COMERCIO DE PRODUTOS MEDICOS LTDA | F160: 08.116.472/0001-16 | G160: 23817.006625/2020-38 | H160: 2020-06-09 | I160: 2020-06-16 | J160: 2020-06-25 | K160: ATRASO NO ENVIO DA GNRE POR PARTE DO FORNECEDOR | L160: SIM
A161: 5 | B161: 11949 | C161: 23278.5 | E161: LEEDSAY INDUSTRIA E COMERCIO DE PRODUTOS MEDICOS LTDA | F161: 08.116.472/0001-16 | G161: 23817.006647/2020-06 | H161: 2020-06-10 | I161: 2020-06-16 | J161: 2020-06-25 | K161: ATRASO NO ENVIO DA GNRE POR PARTE DO FORNECEDOR | L161: SIM
A162: 6 | B162: 6438 E 6703 | C162: 17464 | E162: PREMIUM HOSPITALAR EIRELI - ME | F162: 27.325.768/0001-91 | G162: 23817.006560/2020-21 | H162: 2020-06-08 | I162: 2020-06-16 | K162: ATRASO NO ENVIO DA GNRE POR PARTE DO FORNECEDOR | L162: NÃO
A163: 7 | B163: 11934 | C163: 21735 | E163: LEEDSAY INDUSTRIA E COMERCIO DE PRODUTOS MEDICOS LTDA | F163: 08.116.472/0001-16 | G163: 23817.006892/2020-13 | H163: 2020-06-16 | I163: 2020-06-18 | J163: 2020-06-30 | K163: ATRASO NO ENVIO DA GNRE POR PARTE DO FORNECEDOR | L163: SIM
A164: 8 | B164: 6841 | C164: 6048 | E164: PREMIUM HOSPITALAR EIRELI - ME | F164: 27.325.768/0001-91 | G164: 23817.007021/2020-17 | H164: 2020-06-19 | I164: 2020-06-22 | J164: 2020-06-25 | K164: ATRASO NO ENVIO DA GNRE POR PARTE DO FORNECEDOR | L164: SIM
A165: 9 | B165: 63 | C165: 22980 | E165: MARCUS HENRIQUES DOS SANTOS LMA | F165: 17.268.781/0001-00 | G165: 23817.006890/2020-16 | H165: 2020-06-16 | I165: 2020-06-30 | J165: 2020-06-30 | L165: SIM
C166: =SUM(C157:C165) -> 154462.75
A168: LISTA CLASSIFICATÓRIA ESPECIAL DE PEQUENOS CREDORES* FONTE 6353000000
A169: Nº | B169: N° FATURA | C169: VALOR DA FATURA | D169: CONTRATO | E169: RAZÃO SOCIAL | F169: CNPJ | G169: N° PROCESSO | H169: DATA DA EXIGIBILIDADE* | I169: DATA DE ENVIO P/ PGMT | J169: DATA DE PAGAMENTO | K169: JUSTIFICATIVA | L169: PAGAMENTO EFETUADO?
A170: 1 | B170: 114 | C170: 781 | E170: PRIME SOLUÇÕES EM SAUDE EIRELI | F170: 27.080.739/0001-07 | G170: 23817.006004/2020-54 | H170: 2020-05-25 | I170: 2020-05-27 | J170: 2020-06-02 | L170: SIM
A171: 2 | B171: 287 | C171: 34625 | E171: ELUMI COMERCCIO DE EQUIPAMENTOS EIRELI | F171: 09.070.369/0001-45 | G171: 23817.006308/2020-11 | H171: 2020-06-02 | I171: 2020-06-03 | J171: 2020-06-05 | L171: SIM
A172: 3 | B172: 88244 | C172: 2040 | E172: BIOTEC PRODUTOS HOSPITALARES LTDA | F172: 07.204.591/0001-68 | G172: 23817.006357/2020-54 | H172: 2020-06-03 | I172: 2020-06-04 | J172: 2020-06-05 | L172: SIM
A173: 4 | B173: 6634 | C173: 700 | E173: PRIOM TECNOLOGIA EM EQUIPAMENTOS EIRLEI | F173: 11.619.992/0001-56 | G173: 23817.006388/2020-13 | H173: 2020-06-03 | I173: 2020-06-08 | J173: 2020-06-18 | L173: SIM
A174: 5 | B174: 74 | C174: 4072 | E174: MARIA JOSE SILVA GENU | F174: 02.224.532/0001-38 | G174: 23817.006406/2020-59 | H174: 2020-06-03 | I174: 2020-06-08 | J174: 2020-06-18 | L174: SIM
A175: 6 | B175: 907 | C175: 706 | E175: RT COSTA FELICIANO | F175: 23.533.848/0001-81 | G175: 23817.006382/2020-38 | H175: 2020-06-03 | I175: 2020-06-10 | J175: 2020-06-23 | L175: SIM
A176: 7 | B176: 1852 | C176: 10162.1 | E176: POSTERARI ASSESSORIA TÉCNICA EIRELI | F176: 16.743.543/0001-39 | G176: 23817.006667/2020-79 | H176: 2020-06-10 | I176: 2020-06-16 | J176: 2020-06-23 | L176: SIM
A177: 8 | B177: 678 | C177: 5155.5 | E177: LB COMERCIO E SERVIÇOS EIRELI | F177: 18.489.967/0001-44 | G177: 23817.007105/2020-42 | H177: 2020-06-22 | I177: 2020-06-23 | J177: 2020-06-29 | L177: SIM
C178: =SUM(C170:C177) -> 58241.6
A179: Data de exigibilidade * - Data de ateste da fatura | C179: =C9+C48+C137+C142+C148+C153+C166+C178 -> 958566.07
A180: Lista classificartória especial de pequenos credores* - Contratações com valor inferiror a R$ 35.200,00

Sheet Fornecimento de Bens
A1: PAGAMENTOS REFERENTES AO MÊS DE JUNHO DE 2020
A3: CATEGORIA: I - FORNECIMENTO DE BENS - FONTE 6153000300
A4: Nº | B4: N° FATURA | C4: VALOR DA FATURA | D4: CONTRATO | E4: RAZÃO SOCIAL | F4: CNPJ | G4: N° PROCESSO | H4: DATA DA EXIGIBILIDADE* | I4: DATA DE ENVIO P/ PGMT | J4: DATA DE PAGAMENTO | K4: JUSTIFICATIVA | L4: PAGAMENTO EFETUADO?
A5: 1 | B5: 2650 | C5: 76890 | E5: SERGIPANA DISTRIBUIDORA DE MEDICAMENTOS EIRELI | F5: 09.180.777/0001-50 | G5: 23817.005891/2020-43 | H5: 2020-05-21 | I5: 2020-05-25 | J5: 2020-06-03 | L5: SIM
A6: 2 | B6: 465, 486, 469, 471, 474 e 476 | C6: 42397.5 | E6: RICARDO MOTTA DE ANDRADE | F6: 04.624.944/0001-90 | G6: 23817.008213/2019-07 | H6: 2020-06-02 | I6: 2020-06-03 | J6: 2020-06-12 | L6: SIM
A7: 3 | B7: 36689 | C7: 6360 | D7: 11/2020 | E7: BIOTRADE PRODUTOS PARA LABORATORIOS LTDA | F7: 02.712.393/0001-91 | G7: 23817.006508/2020-74 | H7: 2020-06-05 | I7: 2020-06-17 | J7: 2020-06-25 | L7: SIM
A8: 4 | B8: 150576 | C8: 2114.75 | D8: 12/2020 | E8: LABINBRAZ COMERCIAL LTDA | F8: 73.008.682/0001-52 | G8: 23817.006510/2020-43 | H8: 2020-06-05 | I8: 2020-06-17 | J8: 2020-06-25 | L8: SIM
A9: 5 | B9: 150926 | C9: 1332.85 | D9: 12/2020 | E9: LABINBRAZ COMERCIAL LTDA | F9: 73.008.682/0002-52 | G9: 23817.006516/2020-11 | H9: 2020-06-05 | I9: 2020-06-17 | J9: 2020-06-25 | L9: SIM
C10: =SUM(C5:C9) -> 129095.1
A12: CATEGORIA: I - FORNECIMENTO DE BENS - FONTE 8250264430
A13: Nº | B13: N° FATURA | C13: VALOR DA FATURA | D13: CONTRATO | E13: RAZÃO SOCIAL | F13: CNPJ | G13: N° PROCESSO | H13: DATA DA EXIGIBILIDADE* | I13: DATA DE ENVIO P/ PGMT | J13: DATA DE PAGAMENTO | K13: JUSTIFICATIVA | L13: PAGAMENTO EFETUADO?
A14: 1 | B14: 1074 | C14: 8970 | D14: 04/2019 | E14: SURGISYS COMERCIO DE IMPLANTES CIRURGICOS LTDA ME | F14: 22.300.948/0001-03 | G14: 23817.005686/2020-88 | H14: 2020-05-18 | I14: 2020-05-28 | J14: 2020-06-01 | L14: SIM
C15: =SUM(C14) -> 8970
A17: CATEGORIA: I - FORNECIMENTO DE BENS - FONTE 6153000300 e 0151002171
A18: Nº | B18: N° FATURA | C18: VALOR DA FATURA | D18: CONTRATO | E18: RAZÃO SOCIAL | F18: CNPJ | G18: N° PROCESSO | H18: DATA DA EXIGIBILIDADE* | I18: DATA DE ENVIO P/ PGMT | J18: DATA DE PAGAMENTO | K18: JUSTIFICATIVA | L18: PAGAMENTO EFETUADO?
A19: 1 | B19: 297618, 297930, 297931, 298001 A 298010 | C19: 33008.35 | D19: 07/2019 | E19: WHITE MARTINS GASES INDUSTRIAIS NE LTDA | F19: 24.380.578/0004-21 | G19: 23817.006657/2020-33 | H19: 2020-06-10 | I19: 2020-06-18 | L19: NÃO
C20: =SUM(C19:C19) -> 33008.35
A22: CATEGORIA: I - FORNECIMENTO DE BENS - FONTE 8100915107
A23: Nº | B23: N° FATURA | C23: VALOR DA FATURA | D23: CONTRATO | E23: RAZÃO SOCIAL | F23: CNPJ | G23: N° PROCESSO | H23: DATA DA EXIGIBILIDADE* | I23: DATA DE ENVIO P/ PGMT | J23: DATA DE PAGAMENTO | K23: JUSTIFICATIVA | L23: PAGAMENTO EFETUADO?
A24: 1 | B24: 373 E 375 | C24: 130000 | E24: SERMED COMERCIO DE MATERIAL HOSPITALAR LTDA | F24: 16.566.588/0001-85 | G24: 23817.006049/2020-29 | H24: 2020-05-26 | I24: 2020-05-28 | J24: 2020-06-04 | L24: SIM
A25: 2 | B25: 1448506 E 1448507 | C25: 43391.04 | D25: 05/2020 | E25: FRESENIUS MEDICAL CARE | F25: 01.440.590/0001-36 | G25: 23817.005831/2020-21 | H25: 2020-05-21 | I25: 2020-05-28 | J25: 2020-06-04 | L25: SIM
A26: 3 | B26: 23320 | C26: 108570 | E26: BARRFAB INDUSTRIA E COMERCIO IMPORTAÇÃO E EXPORTAÇÃO DE EQUIPAMENTOS HOSPITALARES LTDA | F26: 02.836.248/0001-12 | G26: 23817.003541/2020-42 | H26: 2020-03-10 | I26: 2020-05-29 | J26: 2020-06-10 | L26: SIM
A27: 4 | B27: 355314 | C27: 55560 | E27: PROFARMA SPECIALTY S.A | F27: 81.887.838/0007-36 | G27: 23817.006932//2020-19 | H27: 2020-06-17 | I27: 2020-06-19 | J27: 2020-06-29 | L27: SIM
A28: 5 | B28: 5249 | C28: 14818.88 | D28: 23/2020 | E28: EXPANSÃO COM. PROD. DE DIAGNOSTICO LTDA | F28: 06.242.018/0001-86 | G28: 23817.007027/2020-86 | H28: 2020-06-22 | I28: 2020-06-25 | L28: NÃO
A29: 6 | B29: 19565 | C29: 141664 | E29: UNITED MEDICAL LTDA | F29: 68.949.239/0005-70 | G29: 23817.007113/2020-99 | H29: 2020-06-22 | I29: 2020-06-26 | L29: NÃO
A30: 7 | B30: 151640 | C30: 183000 | E30: OLYMPUS OPTICAL DO BRASIL LTDA | F30: 04.937.243/0001-01 | G30: 23817.007341/2020-69 | H30: 2020-06-25 | I30: 2020-06-29 | L30: NÃO
C31: =SUM(C24:C30) -> 677003.92
A33: CATEGORIA: I - FORNECIMENTO DE BENS - FONTE 0100915002
A34: Nº | B34: N° FATURA | C34: VALOR DA FATURA | D34: CONTRATO | E34: RAZÃO SOCIAL | F34: CNPJ | G34: N° PROCESSO | H34: DATA DA EXIGIBILIDADE* | I34: DATA DE ENVIO P/ PGMT | J34: DATA DE PAGAMENTO | K34: JUSTIFICATIVA | L34: PAGAMENTO EFETUADO?
A35: 1 | B35: 11448,11421,11547 E 11568 | C35: 45832.5 | E35: LEEDSAY INDUSTRIA E COMERCIO DE PRODUTOS MEDICOS LTDA | F35: 08.116.472/0001-16 | G35: 23817.005730/2020-50 | H35: 2020-05-21 | I35: 2020-05-26 | J35: 2020-06-01 | K35: FALTANDO ENVIAR A GNRE | L35: SIM
A36: 2 | B36: 458 | C36: 32900 | D36: 24/2020 | E36: LIMP SAFECOMERCIO DE EQUIPAMENTOS EIRELI | F36: 08.973.252/0001-09 | G36: 23817.006148/2020-19 | H36: 2020-05-28 | I36: 2020-06-01 | J36: 2020-06-02 | L36: SIM
A37: 3 | B37: 14022 | C37: 36000 | D37: 25/2020 | E37: NOVA BIOMEDICAL DIAGNOSTICOS MEDICOS E BIOTECNOLOGIA LTDA | F37: 18.271.934/0001-23 | G37: 23817.006505/2020-31 | H37: 2020-06-05 | I37: 2020-06-10 | J37: 2020-06-16 | L37: SIM
A38: 4 | B38: 365 | C38: 59131.8 | E38: APPROACH TECNOLOGIA LTDA | F38: 24.376.542/0001-21 | G38: 23817.006500/2020-16 | H38: 2020-06-05 | I38: 2020-06-12 | J38: 2020-06-18 | K38: FALTANDO ENVIAR A GNRE | L38: SIM
A39: 5 | B39: 73 | C39: 60498 | D39: 19/2020 | E39: MARCIO VINICIUS ALMEIDA SANTOS | F39: 25.348.122/0001-02 | G39: 23817.006380/2020-49 | H39: 2020-06-05 | I39: 2020-06-12 | J39: 2020-06-16 | L39: SIM
A40: 6 | B40: 94508 | C40: 78000 | E40: PRIME MEDICAL COMERCIO DE MATERIAIS MEDICOS | F40: 09.342.946/0001-00 | G40: 23817.006668/2020-13 | H40: 2020-06-09 | I40: 2020-06-16 | J40: 2020-06-17 | L40: SIM
A41: 7 | B41: 18 | C41: 61966.05 | D41: 20/2020 | E41: FCM INSTALADORA ELETRICA EIRELI | F41: 04.020.858/0001-79 | G41: 23817.006582/2020-91 | H41: 2020-06-08 | I41: 2020-06-16 | J41: 2020-06-17 | L41: SIM
A42: 8 | B42: 152094 | C42: 148894 | E42: OLYMPUS OPTICAL DO BRASIL LTDA | F42: 04.937.243/0001-01 | G42: 23817.007342/2020-11 | H42: 2020-06-25 | I42: 2020-06-29 | J42: 2020-06-30 | L42: SIM
A43: 9 | B43: 419 | C43: 35880 | D43: 27/2020 | E43: SERMED COMERCIO DE MATERIAL HOSPITALAR LTDA | F43: 16.566.588/0001-85 | G43: 23817.007264/2020-47 | H43: 2020-06-26 | I43: 2020-06-30 | L43: NÃO
A44: 10 | B44: 301 | C44: 114595 | E44: ELUMI COMERCIO DE EQUIPAMENTOS EIRELI EPP | F44: 09.070.369/0001-45 | G44: 23817.007346/2020-91 | H44: 2020-06-29 | I44: 2020-06-30 | L44: NÃO
C45: =SUM(C35:C44) -> 673697.35
A47: CATEGORIA: I - FORNECIMENTO DE BENS - FONTE 6353000000
A48: Nº | B48: N° FATURA | C48: VALOR DA FATURA | D48: CONTRATO | E48: RAZÃO SOCIAL | F48: CNPJ | G48: N° PROCESSO | H48: DATA DA EXIGIBILIDADE* | I48: DATA DE ENVIO P/ PGMT | J48: DATA DE PAGAMENTO | K48: JUSTIFICATIVA | L48: PAGAMENTO EFETUADO?
A49: 1 | B49: 18476 | C49: 62840 | E49: D F COMERCIO DE EPIS FERRAMENTAS E EUIPAMETOS INDUSTRIAIS LTDA | F49: 23.724.306/0001-96 | G49: 23817.006309/2020-66 | H49: 2020-06-02 | I49: 2020-06-03 | J49: 2020-06-05 | L49: SIM
A50: 2 | B50: 105096 E 105589 | C50: 63960 | E50: ATACADO LITORAL CATARINENSE | F50: 09.006.278/0001-40 | G50: 23817.006153/2020-13 | H50: 2020-06-05 | I50: 2020-06-09 | J50: 2020-06-18 | L50: SIM
A51: 3 | B51: 18891 | C51: 80000 | E51: D F COMERCIO DE EPIS FERRAMENTAS E EUIPAMETOS INDUSTRIAIS LTDA | F51: 23.724.306/0001-96 | G51: 23817.006960/2020-36 | H51: 2020-06-18 | I51: 2020-06-19 | J51: 2020-06-29 | L51: SIM
A52: 4 | B52: 137 | C52: 37000 | E52: JUNIOR COMERCIO E SERVIÇOS EIRELI | F52: 23.724.306/0001-96 | G52: 23817.006585/2020-24 | H52: 2020-06-08 | I52: 2020-06-12 | J52: 2020-06-23 | L52: SIM
A53: 5 | B53: 144 E 138 | C53: 37000 | E53: JUNIOR COMERCIO E SERVIÇOS EIRELI | F53: 23.326.462/0001-07 | G53: 23817.006587/2020-13 | H53: 2020-06-17 | I53: 2020-06-22 | J53: 2020-06-29 | L53: SIM
C54: =SUM(C49:C53) -> 280800
A56: CATEGORIA: I - FORNECIMENTO DE BENS - FONTE 0151002788
A57: Nº | B57: N° FATURA | C57: VALOR DA FATURA | D57: CONTRATO | E57: RAZÃO SOCIAL | F57: CNPJ | G57: N° PROCESSO | H57: DATA DA EXIGIBILIDADE* | I57: DATA DE ENVIO P/ PGMT | J57: DATA DE PAGAMENTO | K57: JUSTIFICATIVA | L57: PAGAMENTO EFETUADO?
A58: 1 | B58: 607 | C58: 49204.15 | D58: 20/2019 | E58: CENUTRI CLINICA ESPECIALIZADA DE NUTRICAO LTDA | F58: 07.002.354/0001-14 | G58: 23817.007215/2020-12 | H58: 2020-06-25 | I58: 2020-06-26 | L58: NÃO
C59: =SUM(C58:C58) -> 49204.15
A60: Data de exigibilidade * - Data de ateste da fatura | C60: =C10+C15+C20+C31+C45+C54+C59 -> 1851778.87

Sheet Prestação de Serviço
A1: PAGAMENTOS REFERENTES AO MÊS DE JUNHO DE 2020
A3: CATEGORIA: I - PRESTAÇÃO DE SERVIÇO - FONTE 0100915002
A4: Nº | B4: N° FATURA | C4: VALOR DA FATURA | D4: CONTRATO | E4: RAZÃO SOCIAL | F4: CNPJ | G4: N° PROCESSO | H4: DATA DA EXIGIBILIDADE* | I4: DATA DE ENVIO P/ PGMT | J4: DATA DE PAGAMENTO | K4: JUSTIFICATIVA | L4: PAGAMENTO EFETUADO?
A5: 1 | B5: 17 | C5: 20216.61 | D5: 20/2020 | E5: FCM INSTALADORA ELETRICA EIRELI | F5: 04.020.858/0001-79 | G5: 23817.006407/2020-01 | H5: 2020-06-04 | I5: 2020-06-05 | J5: 2020-06-05 | L5: SIM
C6: =SUM(C5) -> 20216.61
A8: CATEGORIA: I - PRESTAÇÃO DE SERVIÇO - FONTE 6153000300
A9: Nº | B9: N° FATURA | C9: VALOR DA FATURA | D9: CONTRATO | E9: RAZÃO SOCIAL | F9: CNPJ | G9: N° PROCESSO | H9: DATA DA EXIGIBILIDADE* | I9: DATA DE ENVIO P/ PGMT | J9: DATA DE PAGAMENTO | K9: JUSTIFICATIVA | L9: PAGAMENTO EFETUADO?
A10: 1 | B10: 2393 | C10: 3000 | D10: 02/2019 | E10: GERAÇÃO SERVIÇOS DE MANUTENÇÃO E REPARAÇÃO DE GERADPRES | F10: 10.646.538/0001-21 | G10: 23817.005366/2020-28 | H10: 2020-05-11 | I10: 2020-05-21 | J10: 2020-06-02 | L10: SIM
A11: 2 | B11: 413 | C11: 44661.21 | D11: 09/2018 | E11: YEX GESTÃO DE SERVIÇO LTDA | F11: 07.689.816/0001-13 | G11: 23817.004180/2020-51 | H11: 2020-04-06 | I11: 2020-05-27 | J11: 2020-06-05 | L11: SIM
A12: 3 | B12: 15433 | C12: 12662 | D12: 04/2020 | E12: GOLDI SERVIÇO E ADMINISTRAÇÃO LTDA | F12: 20.217.208/0001-74 | G12: 23817.005471/2020-67 | H12: 2020-05-21 | I12: 2020-05-29 | J12: 2020-06-09 | L12: SIM
A13: 4 | B13: 679 E 680 | C13: =26482.5+1593 -> 28075.5 | D13: 09/2019 | E13: YEX GESTÃO DE SERVIÇO LTDA | F13: 07.689.816/0001-13 | G13: 23817.006087/2020-81 | H13: 2020-05-28 | I13: 2020-06-02 | J13: 2020-06-09 | L13: SIM
A14: 5 | B14: 1808 | C14: 110900.49 | D14: 06/2018 | E14: CLEAN MASTER TERCEIRIZAÇÃO DE SERVIÇOS EIRELI | F14: 14.346.629/0001-00 | G14: 23817.006167/2020-37 | H14: 2020-05-29 | I14: 2020-06-02 | J14: 2020-06-10 | L14: SIM
A15: 6 | B15: 24627440 | C15: 96174.5 | D15: 06/2020 | E15: ENERGISA SERGIPE -DISTRIB. ENERGISA S.A | F15: 13.017.462/0001-63 | G15: 23817.006242/2020-60 | H15: 2020-06-02 | I15: 2020-06-03 | J15: 2020-06-12 | L15: SIM
A16: 7 | B16: 618 | C16: 83297.6 | D16: 02/2017-UFS | E16: SACEL - SERVIÇOS DE VIGILÂNCIA PATRIMONIAL EIRELI | F16: 16.207.888/0001-78 | G16: 23817.006304/2020-33 | H16: 2020-06-03 | I16: 2020-06-05 | J16: 2020-06-12 | L16: SIM
A17: 8 | B17: 11 | C17: 15833.32 | D17: 02/2020 | E17: HC -CONSTRUÇÕES E PROJETOS | F17: 11.964.142/0001-95 | G17: 23817.006297/2020-70 | H17: 2020-06-03 | I17: 2020-06-05 | J17: 2020-06-12 | L17: SIM
A18: 9 | B18: 2020064977424 | C18: 14826.43 | D18: 03/2018 | E18: COMPANHIA DE SANEAMENTO DE SERGIPE | F18: 13.017.171/0001-90 | G18: 23817.006367/2020-90 | H18: 2020-06-03 | I18: 2020-06-05 | J18: 2020-06-12 | L18: SIM
A19: 10 | B19: 136 | C19: 12675 | D19: 12/2019 | E19: X-TEC COMERCIO E SERVIÇOS EIRELI | F19: 06.347.171/0001-78 | G19: 23817.006394/2020-62 | H19: 2020-06-03 | I19: 2020-06-09 | J19: 2020-06-15 | L19: SIM
A20: 11 | B20: 32323 | C20: 254.18 | D20: 14/2017 | E20: EMPRESA BRASILEIRA DE CORREIOS E TELEGRAFOS | F20: 34.028.316/0032-00 | G20: 23817.006571/2020-19 | H20: 2020-06-08 | I20: 2020-06-09 | J20: 2020-06-15 | L20: SIM
A21: 12 | B21: 1606 E 1609 | C21: 7519.21 | D21: 85/2016 | E21: BK TELECOMUNICAÇÕES LTDA ME | F21: 18.929.415/0001-00 | G21: 23817.006419/2020-28 | H21: 2020-06-03 | I21: 2020-06-09 | J21: 2020-06-15 | L21: SIM
A22: 13 | B22: 1676 E 1857 | C22: 18105.46 | D22: 05/2019 | E22: PRINTPAGE LOCAÇAO DE EQUIPAMENTOS E SERVIÇOS EIRELI | F22: 09.392.052/0001-25 | G22: 23817.006421/2020-05 | H22: 2020-06-04 | I22: 2020-06-09 | J22: 2020-06-15 | L22: SIM
A23: 14 | B23: 35681965 | C23: 2525.7 | D23: 05/2018 | E23: TICKET SOLUÇÕES HDFGT S.A | F23: 03.506.307/0001-57 | G23: 23817.006319/2020-00 | H23: 2020-06-03 | I23: 2020-06-09 | J23: 2020-06-15 | L23: SIM
A24: 15 | B24: 8017 | C24: 14692.3 | D24: 06/2019 | E24: STERICYCLE GESTAO AMBIENTAL LTDA | F24: 01.568.077/0011-05 | G24: 23817.006255/2020-39 | H24: 2020-06-09 | I24: 2020-06-10 | J24: 2020-06-18 | L24: SIM
A25: 16 | B25: 300 | C25: 152577.95 | D25: 08/2018 | E25: VALLE SERVIÇOS EIRELLI | F25: 08.968.820/0002-83 | G25: 23817.006256/2020-83 | H25: 2020-06-04 | I25: 2020-06-12 | J25: 2020-06-18 | L25: SIM
A26: 17 | B26: 1858 e 1859 | C26: =157721.9+19568.74 -> 177290.64 | D26: 06/2018 | E26: CLEAN MASTER TERCEIRIZAÇÃO DE SERVIÇOS EIRELI | F26: 14.346.629/0001-00 | G26: 23817.006372/2020-01 | H26: 2020-06-12 | I26: 2020-06-15 | J26: 2020-06-19 | L26: SIM
A27: 18 | B27: 15627 | C27: 1970.96 | D27: 04/2020 | E27: GOLDI SERVIÇO E ADMINISTRAÇÃO LTDA | F27: 20.217.208/0001-74 | G27: 23817.006333/2020-03 | H27: 2020-06-08 | I27: 2020-06-15 | J27: 2020-06-19 | L27: SIM
A28: 19 | B28: 2363 | C28: 3000 | D28: 02/2019 | E28: GERAÇÃO SERVIÇO E MANUTENÇÃO E REPARAÇÃO DE GERADORES LTDA | F28: 10.646.538/0001-21 | G28: 23817.004458/2020-91 | H28: 2020-04-09 | I28: 2020-06-19 | J28: 2020-06-26 | L28: SIM
A29: 20 | B29: 35468324 | C29: 3735.36 | D29: 05/2018 | E29: TICKET SOLUÇÕES HDFGT S.A | F29: 03.506.307/0001-57 | G29: 23817004140/2020-18 | H29: 2020-06-09 | I29: 2020-06-19 | J29: 2020-06-26 | L29: SIM
A30: 21 | B30: 557 | C30: 49715.15 | D30: 11/2018 | E30: GENNESIS ENGENHARIA E CONSULTORIA LTDA | F30: 17.851.596/0001-36 | G30: 23817.006559/2020-04 | H30: 2020-06-18 | I30: 2020-06-19 | J30: 2020-06-26 | L30: SIM
A31: 22 | B31: 725 | C31: 26570 | D31: 24/2019 | E31: CLIMEF CLINICA MEDICA LTDA - ME | F31: 07.821.600/0001-60 | G31: 23817.006335/2020-94 | H31: 2020-06-18 | I31: 2020-06-22 | J31: 2020-06-30 | L31: SIM
A32: 23 | B32: 2638 | C32: 112207.73 | D32: 01/2019 | E32: ENGEBIO SERVIÇOS TECNICOS DE EMGENHARIA LTDA | F32: 06.555.589/0001-70 | G32: 23817.006609/2020-45 | H32: 2020-06-10 | I32: 2020-06-29 | L32: NÃO
A33: 24 | B33: 1581 | C33: 11387.72 | D33: 11/2019 | E33: POLO AR CONDICIONADO SERVIÇOS DE REFRIGERAÇÃO LTDA | F33: 06/021.988/0001-51 | G33: 23817.002644/2020-95 | H33: 2020-06-26 | I33: 2020-06-29 | L33: NÃO
C34: =SUM(C10:C33) -> 1003658.41
A36: CATEGORIA: I - PRESTAÇÃO DE SERVIÇO - FONTE 6153000300, 0151001416
A37: Nº | B37: N° FATURA | C37: VALOR DA FATURA | D37: CONTRATO | E37: RAZÃO SOCIAL | F37: CNPJ | G37: N° PROCESSO | H37: DATA DA EXIGIBILIDADE* | I37: DATA DE ENVIO P/ PGMT | J37: DATA DE PAGAMENTO | K37: JUSTIFICATIVA | L37: PAGAMENTO EFETUADO?
A38: 1 | B38: 1490 | C38: 14234.66 | D38: 11/2019 | E38: POLO AR CONDICIONADO SERVIÇOS DE REFRIGERAÇÃO LTDA | F38: 06.021.988/0001-51 | G38: 23817.006726/2020-17 | H38: 2020-06-15 | I38: 2020-06-19 | L38: NÃO
A39: 2 | B39: 1554 | C39: 210010.75 | D39: 11/2019 | E39: POLO AR CONDICIONADO SERVIÇOS DE REFRIGERAÇÃO LTDA | F39: 06.021.988/0001-51 | G39: 23817.006732/2020-66 | H39: 2020-06-16 | I39: 2020-06-25 | L39: NÃO
C40: =SUM(C38:C39) -> 224245.41
A42: CATEGORIA: I - PRESTAÇAO DE SERVIÇO - FONTE 6153000300 e0151002788
A43: Nº | B43: N° FATURA | C43: VALOR DA FATURA | D43: CONTRATO | E43: RAZÃO SOCIAL | F43: CNPJ | G43: N° PROCESSO | H43: DATA DA EXIGIBILIDADE* | I43: DATA DE ENVIO P/ PGMT | J43: DATA DE PAGAMENTO | K43: JUSTIFICATIVA | L43: PAGAMENTO EFETUADO?
A44: 1 | B44: 780 | C44: 50372.04 | D44: 09/2018 | E44: YEX GESTÃO DE SERVIÇOS LTDA | F44: 07.689.816/0001-13 | G44: 23817.006259/2020-17 | H44: 2020-06-04 | I44: 2020-06-16 | L44: NÃO
C45: =SUM(C44:C44) -> 50372.04
C46: =C6+C34+C40+C45 -> 1298492.47
A47: Data de exigibilidade * - Data de ateste da fatura

Sheet Realização de Obra
A1: PAGAMENTOS REFERENTES AO MÊS DE JUNHO DE 2020
A3: CATEGORIA: IV - REALIZAÇÃO DE OBRAS - 8100915107
A4: Nº | B4: N° FATURA | C4: VALOR DA FATURA | D4: CONTRATO | E4: RAZÃO SOCIAL | F4: CNPJ | G4: N° PROCESSO | H4: DATA DA EXIGIBILIDADE* | I4: DATA DE ENVIO P/ PGMT | J4: DATA DE PAGAMENTO | K4: JUSTIFICATIVA | L4: PAGAMENTO EFETUADO?
A5: 1
A6: 2
A7: 3
A8: 4
A9: 5
A10: 6
A11: 7
A12: 8
A13: 9
A14: 10
C15: 0
A16: Data de exigibilidade * - Data de ateste da fatura

Sheet Locações
A1: PAGAMENTOS REFERENTES AO MÊS DE JUNHO DE 2020
A3: CATEGORIA: II- LOCAÇÕES - FONTE 0100915002
A4: Nº | B4: N° FATURA | C4: VALOR DA FATURA | D4: CONTRATO | E4: RAZÃO SOCIAL | F4: CNPJ | G4: N° PROCESSO | H4: DATA DA EXIGIBILIDADE* | I4: DATA DE ENVIO P/ PGMT | J4: DATA DE PAGAMENTO | K4: JUSTIFICATIVA | L4: PAGAMENTO EFETUADO?
A5: 1 | B5: 22 | C5: 70083 | D5: 16/2020 | E5: STAND MONTAGENS E EVENTOS LTDA | F5: 02.490.292/0001-13 | G5: 23817.006334/2020-40 | H5: 2020-06-04 | I5: 2020-06-05 | J5: 2020-06-05 | L5: SIM
A6: 2 | B6: 23 | C6: 221225 | D6: 16/2020 | E6: STAND MONTAGENS E EVENTOS LTDA | F6: 02.490.292/0001-13 | G6: 23817.006684/2020-14 | H6: 2020-06-12 | I6: 2020-06-17 | J6: 2020-06-17 | L6: SIM
C7: =SUM(C5:C6) -> 291308
A9: CATEGORIA: II- LOCAÇÕES - FONTE 615300300
A10: Nº | B10: N° FATURA | C10: VALOR DA FATURA | D10: CONTRATO | E10: RAZÃO SOCIAL | F10: CNPJ | G10: N° PROCESSO | H10: DATA DA EXIGIBILIDADE* | I10: DATA DE ENVIO P/ PGMT | J10: DATA DE PAGAMENTO | K10: JUSTIFICATIVA | L10: PAGAMENTO EFETUADO?
A11: 1 | B11: 2020292 | C11: 10905 | D11: 13/2020 | E11: SG TECNOLOGIA CLINICA LTDA | F11: 61.485.900/0007-56 | G11: 23817.006266/2020-19 | H11: 2020-06-03 | I11: 2020-06-05 | J11: 2020-06-12 | L11: SIM
A12: 2 | B12: 2020304 | C12: 10905 | D12: 13/2020 | E12: SG TECNOLOGIA CLINICA LTDA | F12: 61.485.900/0007-56 | G12: 23817.006284/2020-09 | H12: 2020-06-03 | I12: 2020-06-09 | J12: 2020-06-15 | L12: SIM
A13: 3 | B13: 9020177571 | C13: 3250 | D13: 12/2020 | E13: LABINBRAZ COMERCIAL LTDA | F13: 73.008.682/0001-52 | G13: 23817.006409/2020-92 | H13: 2020-06-03 | I13: 2020-06-12 | J13: 2020-06-18 | L13: SIM
A14: 4 | B14: 375213 | C14: 2333.33 | D14: 07/2019 | E14: WHITE MARTINS GASES INDUSTRIAIS NE LTDA | F14: 24.380.578/0004-21 | G14: 23817.007058/2020-37 | H14: 2020-06-20 | I14: 2020-06-22 | J14: 2020-06-30 | L14: SIM
C15: =SUM(C11:C14) -> 27393.33
C16: =C7+C15 -> 318701.33
A17: Data de exigibilidade * - Data de ateste da fatura
